[Event "Titled Tuesday Blitz March 28 Early 2023"]
[White "Skaric, Djuro"]
[Black "Poormosavi, Seyed Kian"]
[WhiteFideId "934569"]
[BlackFideId "12585807"]
[WhiteElo "2282"]
[BlackElo "2334"]
[Result "0-1"]
[Round "01"]
[TimeControl "180+2"]
[Date "2023.03.28"]
[WhiteClock "0:00:33"]
[BlackClock "0:01:30"]

1. g3 {[%clk 0:03:00]}  Nf6 {[%clk 0:02:57]} 2. Bg2 {[%clk 0:03:01]}  g6 {[%clk 0:02:55]} 3. d3 {[%clk 0:03:01]}  Bg7 {[%clk 0:02:55]} 4. e4 {[%clk 0:03:01]}  O-O {[%clk 0:02:55]} 5. Nc3 {[%clk 0:03:01]}  c5 {[%clk 0:02:56]} 6. f4 {[%clk 0:03:00]}  Nc6 {[%clk 0:02:56]} 7. Nf3 {[%clk 0:03:00]}  d5 {[%clk 0:02:57]} 8. O-O {[%clk 0:02:59]}  dxe4 {[%clk 0:02:54]} 9. dxe4 {[%clk 0:02:58]}  Nd4 {[%clk 0:02:52]} 10. e5 {[%clk 0:02:56]}  Ne8 {[%clk 0:02:52]} 11. Nxd4 {[%clk 0:02:53]}  cxd4 {[%clk 0:02:52]} 12. Nb5 {[%clk 0:02:52]}  f6 {[%clk 0:02:49]} 13. Re1 {[%clk 0:02:26]}  fxe5 {[%clk 0:02:45]} 14. fxe5 {[%clk 0:02:26]}  Qa5 {[%clk 0:02:32]} 15. c4 {[%clk 0:01:57]}  dxc3 {[%clk 0:02:29]} 16. Nxc3 {[%clk 0:01:46]}  Be6 {[%clk 0:02:28]} 17. Nd5 {[%clk 0:01:36]}  Rd8 {[%clk 0:02:05]} 18. Nxe7+ {[%clk 0:01:33]}  Kh8 {[%clk 0:02:04]} 19. Bd2 {[%clk 0:01:21]}  Qc5+ {[%clk 0:02:04]} 20. Kh1 {[%clk 0:01:20]}  Qxe7 {[%clk 0:02:04]} 21. Qe2 {[%clk 0:01:18]}  Nc7 {[%clk 0:02:00]} 22. a3 {[%clk 0:01:15]}  Nd5 {[%clk 0:01:58]} 23. Rac1 {[%clk 0:01:08]}  Rd7 {[%clk 0:01:57]} 24. h4 {[%clk 0:01:08]}  h6 {[%clk 0:01:56]} 25. Qb5 {[%clk 0:01:03]}  Rfd8 {[%clk 0:01:47]} 26. h5 {[%clk 0:00:50]}  g5 {[%clk 0:01:46]} 27. Qe2 {[%clk 0:00:49]}  Rf8 {[%clk 0:01:36]} 28. g4 {[%clk 0:00:48]}  Nf4 {[%clk 0:01:34]} 29. Bxf4 {[%clk 0:00:46]}  Rxf4 {[%clk 0:01:34]} 30. Rc8+ {[%clk 0:00:43]}  Rd8 {[%clk 0:01:35]} 31. Rxd8+ {[%clk 0:00:39]}  Qxd8 {[%clk 0:01:36]} 32. Bxb7 {[%clk 0:00:39]}  Bxg4 {[%clk 0:01:32]} 33. Qg2 {[%clk 0:00:37]}  Bxh5 {[%clk 0:01:30]} 34. e6 {[%clk 0:00:37]}  Rh4+ {[%clk 0:01:29]} 35. Kg1 {[%clk 0:00:36]}  Bd4+ {[%clk 0:01:30]} 36. Kf1 {[%clk 0:00:36]}  Qf6+ {[%clk 0:01:30]} 37. Bf3 {[%clk 0:00:33]}  Bxf3 {[%clk 0:01:30]} 38. e7 {[%clk 0:00:32]}  Bxg2+ {[%clk 0:01:30]} 39. Kxg2 {[%clk 0:00:33]}  Qf2# {[%clk 0:01:30]} 0-1


[Site "https://www.chess.com"]

[Event "Titled Tuesday Blitz March 28 Early 2023"]
[White "Alvarez Calzadilla, Jose Avelino"]
[Black "Coelho, Ramyres Santana"]
[WhiteFideId "3526151"]
[BlackFideId "2120690"]
[WhiteElo "2310"]
[BlackElo "1888"]
[Result "1-0"]
[Round "01"]
[TimeControl "180+2"]
[Date "2023.03.28"]
[WhiteClock "0:00:24"]
[BlackClock "0:00:01"]

1. d4 {[%clk 0:02:51]}  Nf6 {[%clk 0:02:58]} 2. Nf3 {[%clk 0:02:49]}  g6 {[%clk 0:02:54]} 3. c4 {[%clk 0:02:47]}  Bg7 {[%clk 0:02:51]} 4. Nc3 {[%clk 0:02:45]}  d6 {[%clk 0:02:51]} 5. g3 {[%clk 0:02:41]}  O-O {[%clk 0:02:51]} 6. Bg2 {[%clk 0:02:40]}  Nc6 {[%clk 0:02:51]} 7. O-O {[%clk 0:02:37]}  e5 {[%clk 0:02:51]} 8. d5 {[%clk 0:02:35]}  Ne7 {[%clk 0:02:51]} 9. e4 {[%clk 0:02:33]}  Nd7 {[%clk 0:02:50]} 10. Ne1 {[%clk 0:02:33]}  f5 {[%clk 0:02:49]} 11. f3 {[%clk 0:02:30]}  f4 {[%clk 0:02:45]} 12. g4 {[%clk 0:02:29]}  h5 {[%clk 0:02:38]} 13. h3 {[%clk 0:02:30]}  hxg4 {[%clk 0:02:38]} 14. hxg4 {[%clk 0:02:30]}  Kf7 {[%clk 0:02:37]} 15. Nd3 {[%clk 0:02:30]}  g5 {[%clk 0:02:35]} 16. b4 {[%clk 0:02:24]}  Ng6 {[%clk 0:02:35]} 17. a4 {[%clk 0:02:21]}  Rh8 {[%clk 0:02:32]} 18. Kf2 {[%clk 0:02:13]}  Nh4 {[%clk 0:02:29]} 19. Ba3 {[%clk 0:02:06]}  Nxg2 {[%clk 0:02:27]} 20. Kxg2 {[%clk 0:02:05]}  Nf6 {[%clk 0:02:26]} 21. Nf2 {[%clk 0:02:03]}  Qe7 {[%clk 0:02:15]} 22. Qb3 {[%clk 0:01:56]}  Bd7 {[%clk 0:02:15]} 23. Rh1 {[%clk 0:01:56]}  Rh4 {[%clk 0:02:04]} 24. Rxh4 {[%clk 0:01:52]}  gxh4 {[%clk 0:02:05]} 25. Rh1 {[%clk 0:01:53]}  Rh8 {[%clk 0:02:02]} 26. c5 {[%clk 0:01:47]}  h3+ {[%clk 0:01:51]} 27. Rxh3 {[%clk 0:01:44]}  Rxh3 {[%clk 0:01:49]} 28. Nxh3 {[%clk 0:01:45]}  Nxg4 {[%clk 0:01:42]} 29. fxg4 {[%clk 0:01:38]}  Bxg4 {[%clk 0:01:43]} 30. Nf2 {[%clk 0:01:31]}  f3+ {[%clk 0:01:34]} 31. Kf1 {[%clk 0:00:54]}  Qh4 {[%clk 0:01:29]} 32. Ncd1 {[%clk 0:00:30]}  Bh3+ {[%clk 0:01:20]} 33. Ke1 {[%clk 0:00:29]}  Bg2 {[%clk 0:01:16]} 34. cxd6 {[%clk 0:00:29]}  cxd6 {[%clk 0:01:16]} 35. Qc2 {[%clk 0:00:29]}  Kg6 {[%clk 0:01:11]} 36. Qc8 {[%clk 0:00:27]}  Qf4 {[%clk 0:00:50]} 37. Bc1 {[%clk 0:00:27]}  Qf7 {[%clk 0:00:40]} 38. Qg4+ {[%clk 0:00:26]}  Kh7 {[%clk 0:00:40]} 39. Qh4+ {[%clk 0:00:25]}  Kg8 {[%clk 0:00:40]} 40. Ng4 {[%clk 0:00:25]}  Qg6 {[%clk 0:00:22]} 41. Ndf2 {[%clk 0:00:24]}  Kf7 {[%clk 0:00:11]} 42. Bh6 {[%clk 0:00:25]}  Kg8 {[%clk 0:00:08]} 43. Bxg7 {[%clk 0:00:25]}  Kxg7 {[%clk 0:00:09]} 44. Qe7+ {[%clk 0:00:25]}  Kh8 {[%clk 0:00:08]} 45. Nf6 {[%clk 0:00:24]}  Qg7 {[%clk 0:00:01]} 46. Qe8+ {[%clk 0:00:24]} 1-0


[Site "https://www.chess.com"]

[Event "Titled Tuesday Blitz March 28 Early 2023"]
[White "Vaibhav Jayant Raut"]
[Black "Onslow, Alfie"]
[WhiteFideId "5089034"]
[BlackFideId "436976"]
[WhiteElo "2156"]
[BlackElo "2114"]
[Result "0-1"]
[Round "01"]
[TimeControl "180+2"]
[Date "2023.03.28"]
[WhiteClock "0:00:05"]
[BlackClock "0:00:06"]

1. d4 {[%clk 0:02:58]}  Nf6 {[%clk 0:02:58]} 2. Nf3 {[%clk 0:02:56]}  c5 {[%clk 0:02:59]} 3. d5 {[%clk 0:02:52]}  b5 {[%clk 0:02:59]} 4. a4 {[%clk 0:02:51]}  b4 {[%clk 0:02:56]} 5. c4 {[%clk 0:02:51]}  d6 {[%clk 0:02:40]} 6. b3 {[%clk 0:02:45]}  g6 {[%clk 0:02:38]} 7. Bb2 {[%clk 0:02:45]}  Bg7 {[%clk 0:02:38]} 8. Nbd2 {[%clk 0:02:45]}  O-O {[%clk 0:02:37]} 9. g3 {[%clk 0:02:42]}  e6 {[%clk 0:02:37]} 10. dxe6 {[%clk 0:02:41]}  fxe6 {[%clk 0:02:37]} 11. Bg2 {[%clk 0:02:42]}  Bb7 {[%clk 0:02:37]} 12. O-O {[%clk 0:02:40]}  Nbd7 {[%clk 0:02:35]} 13. Qc2 {[%clk 0:02:38]}  Qe7 {[%clk 0:02:30]} 14. Rad1 {[%clk 0:02:37]}  d5 {[%clk 0:02:20]} 15. Ne5 {[%clk 0:02:30]}  Nxe5 {[%clk 0:02:15]} 16. Bxe5 {[%clk 0:02:31]}  d4 {[%clk 0:02:15]} 17. Nf3 {[%clk 0:02:18]}  Ng4 {[%clk 0:01:54]} 18. Bxg7 {[%clk 0:02:13]}  Qxg7 {[%clk 0:01:55]} 19. h3 {[%clk 0:02:12]}  Ne5 {[%clk 0:01:47]} 20. Nxe5 {[%clk 0:01:40]}  Bxg2 {[%clk 0:01:48]} 21. Kxg2 {[%clk 0:01:41]}  Qxe5 {[%clk 0:01:47]} 22. Rfe1 {[%clk 0:01:38]}  Qf5 {[%clk 0:01:33]} 23. Qxf5 {[%clk 0:01:32]}  Rxf5 {[%clk 0:01:19]} 24. e3 {[%clk 0:01:30]}  e5 {[%clk 0:01:18]} 25. exd4 {[%clk 0:01:19]}  exd4 {[%clk 0:01:13]} 26. Re7 {[%clk 0:01:14]}  Raf8 {[%clk 0:01:12]} 27. Rd2 {[%clk 0:00:49]}  R8f7 {[%clk 0:01:11]} 28. Re8+ {[%clk 0:00:38]}  Kg7 {[%clk 0:01:08]} 29. Ra8 {[%clk 0:00:29]}  Rf3 {[%clk 0:00:58]} 30. Rxa7 {[%clk 0:00:27]}  Rxb3 {[%clk 0:00:58]} 31. Ra5 {[%clk 0:00:28]}  Rc7 {[%clk 0:00:53]} 32. Ra8 {[%clk 0:00:21]}  Rc3 {[%clk 0:00:49]} 33. a5 {[%clk 0:00:22]}  b3 {[%clk 0:00:42]} 34. a6 {[%clk 0:00:21]}  Rc2 {[%clk 0:00:40]} 35. Rd3 {[%clk 0:00:18]}  Rc3 {[%clk 0:00:35]} 36. Rd2 {[%clk 0:00:15]}  Rxc4 {[%clk 0:00:34]} 37. Rb8 {[%clk 0:00:13]}  Ra4 {[%clk 0:00:25]} 38. Rxb3 {[%clk 0:00:10]}  Rxa6 {[%clk 0:00:25]} 39. Rb1 {[%clk 0:00:07]}  Rd6 {[%clk 0:00:22]} 40. Rc1 {[%clk 0:00:08]}  c4 {[%clk 0:00:22]} 41. f4 {[%clk 0:00:08]}  Kf6 {[%clk 0:00:16]} 42. Kf3 {[%clk 0:00:08]}  d3 {[%clk 0:00:14]} 43. Rc3 {[%clk 0:00:08]}  Rd4 {[%clk 0:00:13]} 44. Ke3 {[%clk 0:00:08]}  Rcd7 {[%clk 0:00:11]} 45. Ra3 {[%clk 0:00:07]}  R4d6 {[%clk 0:00:10]} 46. Kf3 {[%clk 0:00:05]}  Re7 {[%clk 0:00:10]} 47. Rc3 {[%clk 0:00:04]}  Rc7 {[%clk 0:00:09]} 48. g4 {[%clk 0:00:04]}  h6 {[%clk 0:00:09]} 49. h4 {[%clk 0:00:04]}  g5 {[%clk 0:00:09]} 50. hxg5+ {[%clk 0:00:05]}  hxg5 {[%clk 0:00:09]} 51. f5 {[%clk 0:00:05]}  Rdd7 {[%clk 0:00:07]} 52. Rd1 {[%clk 0:00:04]}  Rd4 {[%clk 0:00:07]} 53. Rh1 {[%clk 0:00:05]}  Rf4+ {[%clk 0:00:07]} 54. Kg3 {[%clk 0:00:05]}  Re7 {[%clk 0:00:06]} 55. Rh6+ {[%clk 0:00:04]}  Kg7 {[%clk 0:00:06]} 56. Rc6 {[%clk 0:00:04]}  Re3+ {[%clk 0:00:05]} 57. Kg2 {[%clk 0:00:04]}  Rxg4+ {[%clk 0:00:05]} 58. Kf2 {[%clk 0:00:04]}  Re2+ {[%clk 0:00:06]} 59. Kf3 {[%clk 0:00:05]}  Rf4+ {[%clk 0:00:06]} 60. Kg3 {[%clk 0:00:06]}  Re3+ {[%clk 0:00:04]} 61. Kg2 {[%clk 0:00:06]}  Rxf5 {[%clk 0:00:03]} 62. Rc7+ {[%clk 0:00:05]}  Kg6 {[%clk 0:00:03]} 63. R7xc4 {[%clk 0:00:06]}  Re2+ {[%clk 0:00:03]} 64. Kg3 {[%clk 0:00:06]}  d2 {[%clk 0:00:04]} 65. Rd3 {[%clk 0:00:06]}  Rff2 {[%clk 0:00:01]} 66. Rcd4 {[%clk 0:00:06]}  Rg2+ {[%clk 0:00:02]} 67. Kh3 {[%clk 0:00:06]}  Rh2+ {[%clk 0:00:02]} 68. Kg3 {[%clk 0:00:07]}  Reg2+ {[%clk 0:00:03]} 69. Kf3 {[%clk 0:00:07]}  Rf2+ {[%clk 0:00:03]} 70. Ke4 {[%clk 0:00:08]}  Rh4+ {[%clk 0:00:04]} 71. Kd5 {[%clk 0:00:08]}  Rxd4+ {[%clk 0:00:04]} 72. Kxd4 {[%clk 0:00:09]}  Kh5 {[%clk 0:00:05]} 73. Ke3 {[%clk 0:00:09]}  Rh2 {[%clk 0:00:05]} 74. Ke4 {[%clk 0:00:09]}  Rh4+ {[%clk 0:00:04]} 75. Kf5 {[%clk 0:00:09]}  Rh2 {[%clk 0:00:04]} 76. Rd8 {[%clk 0:00:07]}  Rf2+ {[%clk 0:00:04]} 77. Ke4 {[%clk 0:00:08]}  Kg4 {[%clk 0:00:04]} 78. Ke3 {[%clk 0:00:08]}  Rh2 {[%clk 0:00:04]} 79. Rd4+ {[%clk 0:00:07]}  Kg3 {[%clk 0:00:05]} 80. Rd5 {[%clk 0:00:06]}  g4 {[%clk 0:00:05]} 81. Rd8 {[%clk 0:00:07]}  Rg2 {[%clk 0:00:04]} 82. Rd7 {[%clk 0:00:07]}  Rf2 {[%clk 0:00:04]} 83. Rd8 {[%clk 0:00:06]}  Kg2 {[%clk 0:00:04]} 84. Rg8 {[%clk 0:00:05]}  g3 {[%clk 0:00:04]} 85. Rd8 {[%clk 0:00:06]}  Kg1 {[%clk 0:00:03]} 86. Rg8 {[%clk 0:00:04]}  g2 {[%clk 0:00:03]} 87. Rd8 {[%clk 0:00:04]}  Kf1 {[%clk 0:00:03]} 88. Ra8 {[%clk 0:00:01]}  g1=Q {[%clk 0:00:02]} 89. Ra1+ {[%clk 0:00:02]}  Kg2 {[%clk 0:00:03]} 90. Rxg1+ {[%clk 0:00:02]}  Kxg1 {[%clk 0:00:04]} 91. Kd3 {[%clk 0:00:03]}  d1=Q+ {[%clk 0:00:04]} 92. Kc3 {[%clk 0:00:03]}  Rc2+ {[%clk 0:00:05]} 93. Kb4 {[%clk 0:00:04]}  Qb1+ {[%clk 0:00:05]} 94. Ka3 {[%clk 0:00:05]}  Ra2# {[%clk 0:00:06]} 0-1


[Site "https://www.chess.com"]

[Event "Titled Tuesday Blitz March 28 Early 2023"]
[White "Karthik Sai Ch"]
[Black "Itgelt, Khuyagtsogt"]
[WhiteFideId "46649484"]
[BlackFideId "4902912"]
[WhiteElo "2003"]
[BlackElo "2227"]
[Result "1-0"]
[Round "01"]
[TimeControl "180+2"]
[Date "2023.03.28"]
[WhiteClock "0:00:29"]
[BlackClock "0:00:01"]

1. d4 {[%clk 0:02:57]}  Nf6 {[%clk 0:02:38]} 2. Nf3 {[%clk 0:02:56]}  g6 {[%clk 0:02:23]} 3. Nc3 {[%clk 0:02:54]}  d5 {[%clk 0:02:20]} 4. Bf4 {[%clk 0:02:54]}  Bg7 {[%clk 0:02:15]} 5. e3 {[%clk 0:02:54]}  O-O {[%clk 0:02:09]} 6. Be2 {[%clk 0:02:54]}  c5 {[%clk 0:02:06]} 7. dxc5 {[%clk 0:02:53]}  Qa5 {[%clk 0:02:00]} 8. Nd2 {[%clk 0:02:52]}  Qxc5 {[%clk 0:01:57]} 9. Nb3 {[%clk 0:02:53]}  Qc6 {[%clk 0:01:52]} 10. Nb5 {[%clk 0:02:42]}  Na6 {[%clk 0:01:48]} 11. O-O {[%clk 0:02:27]}  Bd7 {[%clk 0:01:33]} 12. a4 {[%clk 0:02:18]}  Nc5 {[%clk 0:00:54]} 13. N3d4 {[%clk 0:02:05]}  Qc8 {[%clk 0:00:41]} 14. h4 {[%clk 0:01:59]}  a6 {[%clk 0:00:36]} 15. Nc7 {[%clk 0:01:44]}  Ra7 {[%clk 0:00:33]} 16. Bh2 {[%clk 0:01:42]}  b6 {[%clk 0:00:27]} 17. b4 {[%clk 0:01:36]}  Nxa4 {[%clk 0:00:20]} 18. Bxa6 {[%clk 0:01:34]}  Rxa6 {[%clk 0:00:19]} 19. Nxa6 {[%clk 0:01:33]}  Qxa6 {[%clk 0:00:20]} 20. b5 {[%clk 0:01:13]}  Qa5 {[%clk 0:00:09]} 21. c4 {[%clk 0:00:56]}  Ra8 {[%clk 0:00:09]} 22. Qb3 {[%clk 0:00:47]}  Ne4 {[%clk 0:00:05]} 23. Ra3 {[%clk 0:00:41]}  Nd2 {[%clk 0:00:04]} 24. Qc2 {[%clk 0:00:36]}  Nxf1 {[%clk 0:00:04]} 25. Kxf1 {[%clk 0:00:35]}  Bxd4 {[%clk 0:00:04]} 26. exd4 {[%clk 0:00:35]}  dxc4 {[%clk 0:00:04]} 27. Be5 {[%clk 0:00:33]}  Bxb5 {[%clk 0:00:03]} 28. Kg1 {[%clk 0:00:32]}  f6 {[%clk 0:00:02]} 29. Bf4 {[%clk 0:00:30]}  Qb4 {[%clk 0:00:03]} 30. Rg3 {[%clk 0:00:30]}  Be8 {[%clk 0:00:01]} 31. h5 {[%clk 0:00:29]}  Qb2 {[%clk 0:00:01]} 32. Qe4 {[%clk 0:00:29]} 1-0


[Site "https://www.chess.com"]

[Event "Titled Tuesday Blitz March 28 Early 2023"]
[White "Seresin, Francesco"]
[Black "Al-Tarboush, Ward"]
[WhiteFideId "886335"]
[BlackFideId "7601450"]
[WhiteElo "2219"]
[BlackElo "2257"]
[Result "0-1"]
[Round "01"]
[TimeControl "180+2"]
[Date "2023.03.28"]
[WhiteClock "0:00:36"]
[BlackClock "0:00:31"]

1. d4 {[%clk 0:02:59]}  d5 {[%clk 0:02:55]} 2. c4 {[%clk 0:02:59]}  c6 {[%clk 0:02:55]} 3. cxd5 {[%clk 0:02:57]}  cxd5 {[%clk 0:02:56]} 4. Nc3 {[%clk 0:02:57]}  Nf6 {[%clk 0:02:56]} 5. Bf4 {[%clk 0:02:58]}  Nc6 {[%clk 0:02:55]} 6. e3 {[%clk 0:02:58]}  Bg4 {[%clk 0:02:55]} 7. Qb3 {[%clk 0:02:57]}  Na5 {[%clk 0:02:55]} 8. Qa4+ {[%clk 0:02:57]}  Bd7 {[%clk 0:02:52]} 9. Qc2 {[%clk 0:02:58]}  e6 {[%clk 0:02:45]} 10. Nf3 {[%clk 0:02:46]}  Be7 {[%clk 0:02:36]} 11. Bd3 {[%clk 0:02:45]}  Nc6 {[%clk 0:02:34]} 12. a3 {[%clk 0:02:44]}  Nh5 {[%clk 0:02:34]} 13. Bg3 {[%clk 0:02:34]}  f5 {[%clk 0:02:33]} 14. Be5 {[%clk 0:02:32]}  O-O {[%clk 0:02:30]} 15. h3 {[%clk 0:02:30]}  Nf6 {[%clk 0:02:04]} 16. g4 {[%clk 0:02:29]}  Ne4 {[%clk 0:02:02]} 17. gxf5 {[%clk 0:02:03]}  exf5 {[%clk 0:02:03]} 18. Nxd5 {[%clk 0:01:47]}  Qa5+ {[%clk 0:02:02]} 19. Kf1 {[%clk 0:01:38]}  Kh8 {[%clk 0:01:58]} 20. Nxe7 {[%clk 0:01:31]}  Nxe7 {[%clk 0:01:59]} 21. Rg1 {[%clk 0:01:28]}  Ng6 {[%clk 0:01:59]} 22. h4 {[%clk 0:01:23]}  Rac8 {[%clk 0:01:57]} 23. Qe2 {[%clk 0:01:21]}  Be6 {[%clk 0:01:37]} 24. h5 {[%clk 0:01:13]}  Nxe5 {[%clk 0:01:37]} 25. Nxe5 {[%clk 0:01:13]}  Nd2+ {[%clk 0:01:32]} 26. Kg2 {[%clk 0:01:09]}  Bd5+ {[%clk 0:01:31]} 27. Kh2 {[%clk 0:01:08]}  f4 {[%clk 0:01:22]} 28. Qg4 {[%clk 0:01:02]}  Rc7 {[%clk 0:01:15]} 29. Rac1 {[%clk 0:01:00]}  fxe3 {[%clk 0:01:07]} 30. fxe3 {[%clk 0:00:54]}  Nf3+ {[%clk 0:00:59]} 31. Nxf3 {[%clk 0:00:51]}  Bxf3 {[%clk 0:01:00]} 32. Qg3 {[%clk 0:00:46]}  Re7 {[%clk 0:00:34]} 33. Rc5 {[%clk 0:00:43]}  Qd2+ {[%clk 0:00:34]} 34. Kh3 {[%clk 0:00:42]}  Qxd3 {[%clk 0:00:33]} 35. Qxf3 {[%clk 0:00:36]}  Rxf3+ {[%clk 0:00:31]} 0-1


[Site "https://www.chess.com"]

[Event "Titled Tuesday Blitz March 28 Early 2023"]
[White "Turayev, Shahruh"]
[Black "Stalri"]
[WhiteFideId "14003856"]
[WhiteElo "2171"]
[BlackElo "2295"]
[Result "0-1"]
[Round "01"]
[TimeControl "180+2"]
[Date "2023.03.28"]
[WhiteClock "0:00:07"]
[BlackClock "0:00:05"]

1. e4 {[%clk 0:03:00]}  c5 {[%clk 0:02:53]} 2. Nc3 {[%clk 0:03:00]}  Nc6 {[%clk 0:02:51]} 3. Bb5 {[%clk 0:03:01]}  Nd4 {[%clk 0:02:47]} 4. Bc4 {[%clk 0:03:01]}  e6 {[%clk 0:02:47]} 5. Nge2 {[%clk 0:03:01]}  a6 {[%clk 0:02:46]} 6. a4 {[%clk 0:03:01]}  Nf6 {[%clk 0:02:44]} 7. O-O {[%clk 0:03:01]}  d5 {[%clk 0:02:42]} 8. exd5 {[%clk 0:03:02]}  exd5 {[%clk 0:02:43]} 9. Ba2 {[%clk 0:03:02]}  Nxe2+ {[%clk 0:02:40]} 10. Qxe2+ {[%clk 0:02:59]}  Be7 {[%clk 0:02:41]} 11. Re1 {[%clk 0:02:52]}  Be6 {[%clk 0:02:39]} 12. d3 {[%clk 0:02:49]}  O-O {[%clk 0:02:38]} 13. Bg5 {[%clk 0:02:49]}  Re8 {[%clk 0:02:36]} 14. Qf3 {[%clk 0:02:45]}  Rb8 {[%clk 0:02:15]} 15. h3 {[%clk 0:02:42]}  h6 {[%clk 0:02:14]} 16. Bh4 {[%clk 0:02:32]}  d4 {[%clk 0:02:06]} 17. Bxf6 {[%clk 0:02:10]}  Bxf6 {[%clk 0:02:00]} 18. Ne4 {[%clk 0:02:08]}  Bxa2 {[%clk 0:01:59]} 19. Rxa2 {[%clk 0:02:04]}  Be7 {[%clk 0:01:59]} 20. Raa1 {[%clk 0:02:02]}  Qd7 {[%clk 0:01:58]} 21. Re2 {[%clk 0:01:54]}  f5 {[%clk 0:01:54]} 22. Ng3 {[%clk 0:01:52]}  g6 {[%clk 0:01:54]} 23. Rae1 {[%clk 0:01:52]}  Kf7 {[%clk 0:01:46]} 24. b3 {[%clk 0:01:43]}  Bf6 {[%clk 0:01:39]} 25. Rxe8 {[%clk 0:01:25]}  Rxe8 {[%clk 0:01:40]} 26. Rxe8 {[%clk 0:01:25]}  Kxe8 {[%clk 0:01:41]} 27. Qf4 {[%clk 0:01:22]}  Qe7 {[%clk 0:01:31]} 28. Qxh6 {[%clk 0:01:14]}  Qe1+ {[%clk 0:01:28]} 29. Nf1 {[%clk 0:01:13]}  Kf7 {[%clk 0:01:28]} 30. Qd2 {[%clk 0:01:11]}  Qe6 {[%clk 0:01:28]} 31. Ng3 {[%clk 0:01:05]}  b5 {[%clk 0:01:27]} 32. Qe2 {[%clk 0:01:04]}  Be5 {[%clk 0:01:22]} 33. axb5 {[%clk 0:01:01]}  axb5 {[%clk 0:01:22]} 34. Nf1 {[%clk 0:01:01]}  Kf6 {[%clk 0:01:21]} 35. Nd2 {[%clk 0:01:01]}  Bh2+ {[%clk 0:01:21]} 36. Kf1 {[%clk 0:01:00]}  Qxe2+ {[%clk 0:01:21]} 37. Kxe2 {[%clk 0:01:01]}  Bf4 {[%clk 0:01:20]} 38. g3 {[%clk 0:00:59]}  Bc7 {[%clk 0:01:19]} 39. Nb1 {[%clk 0:00:59]}  b4 {[%clk 0:01:13]} 40. Nd2 {[%clk 0:00:59]}  g5 {[%clk 0:01:13]} 41. Kf3 {[%clk 0:00:55]}  Kg6 {[%clk 0:01:10]} 42. g4 {[%clk 0:00:55]}  Kf6 {[%clk 0:01:06]} 43. Nc4 {[%clk 0:00:51]}  Ke6 {[%clk 0:01:02]} 44. Nd2 {[%clk 0:00:45]}  Ke5 {[%clk 0:01:00]} 45. Nf1 {[%clk 0:00:46]}  f4 {[%clk 0:00:47]} 46. Nd2 {[%clk 0:00:42]}  Kd5 {[%clk 0:00:46]} 47. Ne4 {[%clk 0:00:38]}  Bd8 {[%clk 0:00:46]} 48. h4 {[%clk 0:00:38]}  gxh4 {[%clk 0:00:44]} 49. Kxf4 {[%clk 0:00:39]}  Bc7+ {[%clk 0:00:43]} 50. Kf3 {[%clk 0:00:36]}  h3 {[%clk 0:00:38]} 51. g5 {[%clk 0:00:35]}  Ke6 {[%clk 0:00:34]} 52. Nxc5+ {[%clk 0:00:27]}  Kf5 {[%clk 0:00:34]} 53. Ne4 {[%clk 0:00:25]}  Be5 {[%clk 0:00:34]} 54. Nc5 {[%clk 0:00:11]}  Kxg5 {[%clk 0:00:34]} 55. Nd7 {[%clk 0:00:11]}  Bd6 {[%clk 0:00:32]} 56. Nb6 {[%clk 0:00:10]}  Kf5 {[%clk 0:00:29]} 57. Nc4 {[%clk 0:00:10]}  Bc7 {[%clk 0:00:30]} 58. Nd2 {[%clk 0:00:10]}  Bb8 {[%clk 0:00:28]} 59. Nf1 {[%clk 0:00:08]}  Be5 {[%clk 0:00:27]} 60. Ng3+ {[%clk 0:00:09]}  Kg5 {[%clk 0:00:25]} 61. Ne4+ {[%clk 0:00:10]}  Kf5 {[%clk 0:00:24]} 62. Nc5 {[%clk 0:00:10]}  Bc7 {[%clk 0:00:24]} 63. Na4 {[%clk 0:00:10]}  Kg5 {[%clk 0:00:19]} 64. Nb2 {[%clk 0:00:10]}  Bd6 {[%clk 0:00:18]} 65. Nc4 {[%clk 0:00:09]}  Bc7 {[%clk 0:00:19]} 66. Nd2 {[%clk 0:00:07]}  Kf5 {[%clk 0:00:19]} 67. Nf1 {[%clk 0:00:07]}  Be5 {[%clk 0:00:18]} 68. Ng3+ {[%clk 0:00:06]}  Kg5 {[%clk 0:00:19]} 69. Nh1 {[%clk 0:00:06]}  h2 {[%clk 0:00:08]} 70. Kg2 {[%clk 0:00:04]}  Kg4 {[%clk 0:00:08]} 71. Ng3 {[%clk 0:00:04]}  Bxg3 {[%clk 0:00:07]} 72. fxg3 {[%clk 0:00:04]}  h1=Q+ {[%clk 0:00:05]} 73. Kxh1 {[%clk 0:00:05]}  Kxg3 {[%clk 0:00:03]} 74. Kg1 {[%clk 0:00:06]}  Kf3 {[%clk 0:00:03]} 75. Kf1 {[%clk 0:00:06]}  Ke3 {[%clk 0:00:04]} 76. Ke1 {[%clk 0:00:07]}  Kf3 {[%clk 0:00:05]} 77. Kf1 {[%clk 0:00:06]}  Ke3 {[%clk 0:00:05]} 78. Ke1 {[%clk 0:00:06]}  Kf3 {[%clk 0:00:06]} 79. Kd2 {[%clk 0:00:06]}  Kf2 {[%clk 0:00:04]} 80. Kd1 {[%clk 0:00:06]}  Kf1 {[%clk 0:00:01]} 81. Kc1 {[%clk 0:00:06]}  Ke2 {[%clk 0:00:02]} 82. c4 {[%clk 0:00:03]}  bxc3 {[%clk 0:00:01]} 83. b4 {[%clk 0:00:03]}  Kxd3 {[%clk 0:00:01]} 84. b5 {[%clk 0:00:04]}  Ke2 {[%clk 0:00:02]} 85. b6 {[%clk 0:00:05]}  d3 {[%clk 0:00:03]} 86. b7 {[%clk 0:00:04]}  d2+ {[%clk 0:00:03]} 87. Kc2 {[%clk 0:00:05]}  d1=Q+ {[%clk 0:00:04]} 88. Kxc3 {[%clk 0:00:06]}  Qd8 {[%clk 0:00:04]} 89. Kc4 {[%clk 0:00:07]}  Qb8 {[%clk 0:00:04]} 90. Kc5 {[%clk 0:00:07]}  Qxb7 {[%clk 0:00:05]} 0-1


[Site "https://www.chess.com"]